[Event "FIDE Grand Swiss 2023"]
[Site "Villa Marina, Douglas, Isle of Man, Isle Of Man"]
[Date "2023.11.05"]
[Round "11.6"]
[White "Praggnanandhaa, R"]
[Black "Deac, Bogdan-Daniel"]
[Result "1-0"]
[TimeControl "40/90 + 30 + 30s/move"]
[WhiteFideId "25059530"]
[BlackFideId "1226380"]
[WhiteElo "2738"]
[BlackElo "2701"]

1. e4 {[%clk 01:39:50]} {[%emt 00:01:09]} e5 {[%clk 01:40:58]} {[%emt
00:00:04]} 2. Nf3 {[%clk 01:39:25]} {[%emt 00:00:54]} Nc6 {[%clk 01:39:28]}
{[%emt 00:02:01]} 3. Bb5 {[%clk 01:39:34]} {[%emt 00:00:20]} Nf6 {[%clk
01:39:37]} {[%emt 00:00:21]} 4. d3 {[%clk 01:39:55]} {[%emt 00:00:08]} Bc5
{[%clk 01:39:59]} {[%emt 00:00:08]} 5. Bg5 {[%clk 01:39:50]} {[%emt 00:00:35]}
h6 {[%clk 01:35:56]} {[%emt 00:04:35]} 6. Bh4 {[%clk 01:40:12]} {[%emt
00:00:07]} d6 {[%clk 01:36:16]} {[%emt 00:00:10]} 7. Nc3 {[%clk 01:38:10]}
{[%emt 00:02:31]} Bd7 {[%clk 01:35:55]} {[%emt 00:00:53]} 8. Na4 {[%clk
01:24:16]} {[%emt 00:14:24]} Bb6 {[%clk 01:35:50]} {[%emt 00:00:35]} 9. c3
{[%clk 01:22:40]} {[%emt 00:02:05]} Ne7 {[%clk 01:15:44]} {[%emt 00:20:37]} 10.
Bxf6 {[%clk 01:16:06]} {[%emt 00:07:03]} gxf6 {[%clk 01:15:28]} {[%emt
00:00:47]} 11. Bxd7+ {[%clk 01:00:50]} {[%emt 00:15:45]} Qxd7 {[%clk 01:15:49]}
{[%emt 00:00:09]} 12. O-O {[%clk 00:59:08]} {[%emt 00:02:12]} Rg8 {[%clk
01:08:45]} {[%emt 00:07:35]} 13. Ne1 {[%clk 00:48:34]} {[%emt 00:11:03]} f5
{[%clk 01:01:10]} {[%emt 00:08:05]} 14. Kh1 {[%clk 00:46:49]} {[%emt 00:02:15]}
fxe4 {[%clk 00:36:07]} {[%emt 00:25:33]} 15. dxe4 {[%clk 00:46:27]} {[%emt
00:00:52]} Qg4 {[%clk 00:36:23]} {[%emt 00:00:14]} 16. Qxg4 {[%clk 00:43:38]}
{[%emt 00:03:19]} Rxg4 {[%clk 00:36:21]} {[%emt 00:00:33]} 17. f3 {[%clk
00:43:51]} {[%emt 00:00:16]} Rg7 {[%clk 00:20:21]} {[%emt 00:16:29]} 18. Nd3
{[%clk 00:41:01]} {[%emt 00:03:20]} Kd7 {[%clk 00:16:34]} {[%emt 00:04:18]} 19.
Rad1 {[%clk 00:36:15]} {[%emt 00:05:16]} Ng6 {[%clk 00:11:09]} {[%emt
00:05:54]} 20. b4 {[%clk 00:31:51]} {[%emt 00:04:55]} Ke6 {[%clk 00:09:31]}
{[%emt 00:02:08]} 21. Nab2 {[%clk 00:24:51]} {[%emt 00:07:31]} a6 {[%clk
00:09:12]} {[%emt 00:00:50]} 22. a4 {[%clk 00:24:41]} {[%emt 00:00:38]} f6
{[%clk 00:06:23]} {[%emt 00:03:19]} 23. Nc4 {[%clk 00:18:13]} {[%emt 00:06:58]}
Ba7 {[%clk 00:06:47]} {[%emt 00:00:06]} 24. Na5 {[%clk 00:17:24]} {[%emt
00:01:19]} Rb8 {[%clk 00:04:58]} {[%emt 00:02:19]} 25. Rd2 {[%clk 00:14:06]}
{[%emt 00:03:47]} f5 {[%clk 00:01:14]} {[%emt 00:04:15]} 26. c4 {[%clk
00:10:14]} {[%emt 00:04:22]} Bb6 {[%clk 00:00:35]} {[%emt 00:01:11]} 27. Nb3
{[%clk 00:09:56]} {[%emt 00:00:47]} Be3 {[%clk 00:00:32]} {[%emt 00:00:33]} 28.
exf5+ {[%clk 00:09:50]} {[%emt 00:00:35]} Kxf5 {[%clk 00:00:56]} {[%emt
00:00:06]} 29. Re2 {[%clk 00:10:18]} {[%emt 00:00:02]} Bg5 {[%clk 00:00:36]}
{[%emt 00:00:50]} 30. f4 {[%clk 00:08:44]} {[%emt 00:02:05]} exf4 {[%clk
00:01:01]} {[%emt 00:00:05]} 31. Nd4+ {[%clk 00:09:10]} {[%emt 00:00:03]} Kg4
{[%clk 00:00:37]} {[%emt 00:00:54]} 32. h3+ {[%clk 00:07:34]} {[%emt 00:02:07]}
Kh5 {[%clk 00:01:03]} {[%emt 00:00:04]} 33. Nf5 {[%clk 00:07:56]} {[%emt
00:00:08]} Rgg8 {[%clk 00:00:45]} {[%emt 00:00:48]} 34. g4+ {[%clk 00:07:32]}
{[%emt 00:00:54]} fxg3 {[%clk 00:01:10]} {[%emt 00:00:04]} 35. Nxg3+ {[%clk
00:07:58]} {[%emt 00:00:04]} Kh4 {[%clk 00:01:39]} {[%emt 00:00:01]} 36. Re4+
{[%clk 00:08:04]} {[%emt 00:00:24]} Kxh3 {[%clk 00:01:49]} {[%emt 00:00:21]} 37.
Nf5 {[%clk 00:07:59]} {[%emt 00:00:34]} 1-0

[Event "FIDE Grand Swiss 2023"]
[Site "Villa Marina, Douglas, Isle of Man, Isle Of Man"]
[Date "2023.11.05"]
[Round "11.7"]
[White "Bacrot, Etienne"]
[Black "Aronian, Levon"]
[Result "1/2-1/2"]
[TimeControl "40/90 + 30 + 30s/move"]
[WhiteFideId "605506"]
[BlackFideId "13300474"]
[WhiteElo "2669"]
[BlackElo "2742"]

1. e4 {[%clk 01:40:57]} {[%emt 00:00:02]} e5 {[%clk 01:40:56]} {[%emt
00:00:04]} 2. Nf3 {[%clk 01:41:23]} {[%emt 00:00:04]} Nc6 {[%clk 01:41:22]}
{[%emt 00:00:04]} 3. Nc3 {[%clk 01:41:46]} {[%emt 00:00:07]} Nf6 {[%clk
01:41:47]} {[%emt 00:00:05]} 4. Bb5 {[%clk 01:42:12]} {[%emt 00:00:05]} Nd4
{[%clk 01:42:02]} {[%emt 00:00:15]} 5. Nxd4 {[%clk 01:40:54]} {[%emt 00:01:48]}
exd4 {[%clk 01:42:26]} {[%emt 00:00:06]} 6. e5 {[%clk 01:41:19]} {[%emt
00:00:04]} dxc3 {[%clk 01:42:50]} {[%emt 00:00:06]} 7. exf6 {[%clk 01:41:45]}
{[%emt 00:00:04]} Qxf6 {[%clk 01:43:06]} {[%emt 00:00:14]} 8. dxc3 {[%clk
01:42:08]} {[%emt 00:00:07]} Bc5 {[%clk 01:41:37]} {[%emt 00:01:59]} 9. Qe2+
{[%clk 01:40:26]} {[%emt 00:02:11]} Qe7 {[%clk 01:41:01]} {[%emt 00:01:07]} 10.
Bf4 {[%clk 01:39:19]} {[%emt 00:01:37]} c6 {[%clk 01:39:03]} {[%emt 00:02:28]}
11. Bd3 {[%clk 01:39:39]} {[%emt 00:00:10]} d5 {[%clk 01:39:17]} {[%emt
00:00:16]} 12. c4 {[%clk 01:37:02]} {[%emt 00:03:07]} Qxe2+ {[%clk 01:37:55]}
{[%emt 00:01:52]} 13. Kxe2 {[%clk 01:35:49]} {[%emt 00:01:43]} dxc4 {[%clk
01:36:40]} {[%emt 00:01:45]} 14. Bxc4 {[%clk 01:36:15]} {[%emt 00:00:04]} Bf5
{[%clk 01:36:57]} {[%emt 00:00:12]} 15. Rhd1 {[%clk 01:35:22]} {[%emt
00:01:23]} Bxc2 {[%clk 01:33:00]} {[%emt 00:04:28]} 16. Rdc1 {[%clk 01:34:47]}
{[%emt 00:01:05]} Bg6 {[%clk 01:33:21]} {[%emt 00:00:08]} 17. Bxf7+ {[%clk
01:34:45]} {[%emt 00:00:33]} Bxf7 {[%clk 01:33:37]} {[%emt 00:00:15]} 18. Rxc5
{[%clk 01:35:09]} {[%emt 00:00:06]} O-O {[%clk 01:34:01]} {[%emt 00:00:05]} 19.
Be3 {[%clk 01:31:58]} {[%emt 00:03:41]} Rfd8 {[%clk 01:34:17]} {[%emt
00:00:14]} 20. a3 {[%clk 01:30:58]} {[%emt 00:01:30]} Rd5 {[%clk 01:34:09]}
{[%emt 00:00:38]} 21. Rxd5 {[%clk 01:30:16]} {[%emt 00:01:12]} Bxd5 {[%clk
01:34:11]} {[%emt 00:00:29]} 22. f3 {[%clk 01:30:39]} {[%emt 00:00:06]} Bb3
{[%clk 01:33:31]} {[%emt 00:01:10]} 23. Kd2 {[%clk 01:29:55]} {[%emt 00:01:13]}
a5 {[%clk 01:33:46]} {[%emt 00:00:17]} 24. Re1 {[%clk 01:30:05]} {[%emt
00:00:19]} Re8 {[%clk 01:34:11]} {[%emt 00:00:06]} 25. Bd4 {[%clk 01:30:18]}
{[%emt 00:00:16]} Rxe1 {[%clk 01:34:37]} {[%emt 00:00:06]} 26. Kxe1 {[%clk
01:30:44]} {[%emt 00:00:03]} Kf7 {[%clk 01:35:01]} {[%emt 00:00:06]} 27. Kd2
{[%clk 01:31:10]} {[%emt 00:00:04]} a4 {[%clk 01:35:25]} {[%emt 00:00:07]} 28.
Ke3 {[%clk 01:31:34]} {[%emt 00:00:06]} g5 {[%clk 01:35:44]} {[%emt 00:00:12]}
29. Bb6 {[%clk 01:31:54]} {[%emt 00:00:09]} Bc4 {[%clk 01:36:04]} {[%emt
00:00:10]} 30. Bd4 {[%clk 01:32:16]} {[%emt 00:00:08]} b5 {[%clk 01:36:29]}
{[%emt 00:00:05]} 31. f4 {[%clk 01:32:38]} {[%emt 00:00:08]} 1/2-1/2

[Event "FIDE Grand Swiss 2023"]
[Site "Villa Marina, Douglas, Isle of Man, Isle Of Man"]
[Date "2023.11.05"]
[Round "11.8"]
[White "Cheparinov, Ivan"]
[Black "Vachier-Lagrave, Maxime"]
[Result "1/2-1/2"]
[TimeControl "40/90 + 30 + 30s/move"]
[WhiteFideId "2905540"]
[BlackFideId "623539"]
[WhiteElo "2658"]
[BlackElo "2727"]

1. d4 {[%clk 01:40:57]} {[%emt 00:00:02]} d5 {[%clk 01:40:57]} {[%emt
00:00:04]} 2. c4 {[%clk 01:41:20]} {[%emt 00:00:07]} dxc4 {[%clk 01:41:24]}
{[%emt 00:00:03]} 3. e4 {[%clk 01:41:35]} {[%emt 00:00:14]} b5 {[%clk
01:41:46]} {[%emt 00:00:08]} 4. a4 {[%clk 01:40:25]} {[%emt 00:01:40]} c6
{[%clk 01:42:12]} {[%emt 00:00:04]} 5. axb5 {[%clk 01:33:38]} {[%emt 00:07:18]}
cxb5 {[%clk 01:42:34]} {[%emt 00:00:07]} 6. Nc3 {[%clk 01:33:58]} {[%emt
00:00:10]} Qb6 {[%clk 01:43:00]} {[%emt 00:00:04]} 7. b3 {[%clk 01:25:16]}
{[%emt 00:09:13]} e6 {[%clk 01:40:49]} {[%emt 00:02:41]} 8. bxc4 {[%clk
01:25:11]} {[%emt 00:00:35]} Bb4 {[%clk 01:41:03]} {[%emt 00:00:16]} 9. Bd2
{[%clk 01:23:25]} {[%emt 00:02:16]} bxc4 {[%clk 01:39:18]} {[%emt 00:02:14]} 10.
Bxc4 {[%clk 01:23:16]} {[%emt 00:00:39]} Ne7 {[%clk 01:39:18]} {[%emt
00:00:31]} 11. Nf3 {[%clk 01:21:14]} {[%emt 00:02:31]} O-O {[%clk 01:38:04]}
{[%emt 00:01:44]} 12. Na4 {[%clk 01:18:29]} {[%emt 00:03:15]} Qa5 {[%clk
01:25:40]} {[%emt 00:12:55]} 13. O-O {[%clk 01:16:17]} {[%emt 00:02:42]} Bxd2
{[%clk 01:25:44]} {[%emt 00:00:26]} 14. Qxd2 {[%clk 01:14:37]} {[%emt
00:02:10]} Qxd2 {[%clk 01:24:31]} {[%emt 00:01:43]} 15. Nxd2 {[%clk 01:14:24]}
{[%emt 00:00:43]} Ba6 {[%clk 01:23:30]} {[%emt 00:01:31]} 16. Bxa6 {[%clk
01:05:12]} {[%emt 00:09:42]} Nxa6 {[%clk 01:23:34]} {[%emt 00:00:26]} 17. Rfc1
{[%clk 01:05:37]} {[%emt 00:00:05]} Rfd8 {[%clk 01:20:30]} {[%emt 00:03:34]} 18.
Rc4 {[%clk 01:04:38]} {[%emt 00:01:28]} Rac8 {[%clk 01:18:02]} {[%emt
00:02:58]} 19. Nb2 {[%clk 01:03:07]} {[%emt 00:02:01]} Rxc4 {[%clk 01:18:16]}
{[%emt 00:00:17]} 20. Nbxc4 {[%clk 01:03:32]} {[%emt 00:00:04]} Nb4 {[%clk
01:18:28]} {[%emt 00:00:18]} 21. Rxa7 {[%clk 01:03:36]} {[%emt 00:00:27]} Nbc6
{[%clk 01:18:32]} {[%emt 00:00:25]} 22. Ra6 {[%clk 01:03:05]} {[%emt 00:01:01]}
Nxd4 {[%clk 01:18:15]} {[%emt 00:00:48]} 23. Rd6 {[%clk 01:03:29]} {[%emt
00:00:05]} Rxd6 {[%clk 01:18:42]} {[%emt 00:00:04]} 24. Nxd6 {[%clk 01:03:57]}
{[%emt 00:00:02]} Kf8 {[%clk 01:18:50]} {[%emt 00:00:22]} 25. f3 {[%clk
01:04:21]} {[%emt 00:00:05]} Nec6 {[%clk 01:19:11]} {[%emt 00:00:09]} 26. Kf2
{[%clk 01:04:43]} {[%emt 00:00:09]} Ke7 {[%clk 01:19:37]} {[%emt 00:00:04]} 27.
N6c4 {[%clk 01:05:03]} {[%emt 00:00:10]} f6 {[%clk 01:19:56]} {[%emt 00:00:11]}
28. Ke3 {[%clk 01:05:27]} {[%emt 00:00:06]} Nc2+ {[%clk 01:20:24]} {[%emt
00:00:02]} 29. Ke2 {[%clk 01:05:50]} {[%emt 00:00:07]} N2d4+ {[%clk 01:20:48]}
{[%emt 00:00:06]} 30. Ke3 {[%clk 01:06:17]} {[%emt 00:00:04]} Nc2+ {[%emt
00:00:04]} 1/2-1/2

[Event "FIDE Grand Swiss 2023"]
[Site "Villa Marina, Douglas, Isle of Man, Isle Of Man"]
[Date "2023.11.05"]
[Round "11.9"]
[White "Duda, Jan-Krzysztof"]
[Black "Korobov, Anton"]
[Result "1-0"]
[TimeControl "40/90 + 30 + 30s/move"]
[WhiteFideId "1170546"]
[BlackFideId "14105730"]
[WhiteElo "2726"]
[BlackElo "2658"]

1. d4 {[%clk 01:40:55]} {[%emt 00:00:04]} d5 {[%clk 01:40:47]} {[%emt
00:00:14]} 2. c4 {[%clk 01:41:19]} {[%emt 00:00:06]} c6 {[%clk 01:41:13]}
{[%emt 00:00:04]} 3. Nf3 {[%clk 01:41:40]} {[%emt 00:00:08]} Nf6 {[%clk
01:41:36]} {[%emt 00:00:06]} 4. Nc3 {[%clk 01:42:05]} {[%emt 00:00:07]} e6
{[%clk 01:42:00]} {[%emt 00:00:06]} 5. Bg5 {[%clk 01:42:09]} {[%emt 00:00:26]}
Nbd7 {[%clk 01:42:18]} {[%emt 00:00:11]} 6. e3 {[%clk 01:42:29]} {[%emt
00:00:11]} Qa5 {[%clk 01:42:42]} {[%emt 00:00:06]} 7. cxd5 {[%clk 01:42:08]}
{[%emt 00:00:51]} exd5 {[%clk 01:42:37]} {[%emt 00:00:35]} 8. Bd3 {[%clk
01:40:46]} {[%emt 00:01:52]} Ne4 {[%clk 01:41:26]} {[%emt 00:01:40]} 9. O-O
{[%clk 01:41:06]} {[%emt 00:00:10]} Nxg5 {[%clk 01:41:30]} {[%emt 00:00:26]} 10.
Nxg5 {[%clk 01:41:32]} {[%emt 00:00:05]} Nf6 {[%clk 01:39:06]} {[%emt
00:02:54]} 11. f4 {[%clk 01:29:07]} {[%emt 00:12:55]} Bd6 {[%clk 01:27:22]}
{[%emt 00:12:15]} 12. Qc2 {[%clk 01:23:21]} {[%emt 00:06:16]} h6 {[%clk
01:23:23]} {[%emt 00:04:28]} 13. Nf3 {[%clk 01:23:34]} {[%emt 00:00:16]} O-O
{[%clk 01:23:45]} {[%emt 00:00:08]} 14. Ne5 {[%clk 01:22:35]} {[%emt 00:01:30]}
Be6 {[%clk 01:18:01]} {[%emt 00:06:13]} 15. a3 {[%clk 01:19:54]} {[%emt
00:03:12]} Rac8 {[%clk 01:12:18]} {[%emt 00:06:13]} 16. Na4 {[%clk 01:06:29]}
{[%emt 00:13:55]} c5 {[%clk 01:08:16]} {[%emt 00:04:31]} 17. Nxc5 {[%clk
01:06:13]} {[%emt 00:00:46]} Bxc5 {[%clk 01:04:23]} {[%emt 00:04:23]} 18. dxc5
{[%clk 01:06:31]} {[%emt 00:00:12]} Rxc5 {[%clk 01:02:25]} {[%emt 00:02:28]} 19.
Qb3 {[%clk 01:05:39]} {[%emt 00:01:22]} d4 {[%clk 00:53:44]} {[%emt 00:09:11]}
20. Qxb7 {[%clk 01:04:01]} {[%emt 00:02:08]} Qd2 {[%clk 00:49:05]} {[%emt
00:05:09]} 21. Qb4 {[%clk 00:51:12]} {[%emt 00:13:19]} Qxe3+ {[%clk 00:47:52]}
{[%emt 00:01:42]} 22. Kh1 {[%clk 00:51:35]} {[%emt 00:00:07]} Rxe5 {[%clk
00:46:10]} {[%emt 00:02:13]} 23. Rf3 {[%clk 00:50:13]} {[%emt 00:01:52]} Nd5
{[%clk 00:42:54]} {[%emt 00:03:46]} 24. Qd6 {[%clk 00:49:30]} {[%emt 00:01:14]}
Qd2 {[%clk 00:39:20]} {[%emt 00:04:04]} 25. Qxe5 {[%clk 00:48:39]} {[%emt
00:01:21]} Ne3 {[%clk 00:34:17]} {[%emt 00:05:33]} 26. Rg3 {[%clk 00:47:51]}
{[%emt 00:01:17]} Bg4 {[%clk 00:34:29]} {[%emt 00:00:17]} 27. Qe4 {[%clk
00:38:51]} {[%emt 00:09:31]} g6 {[%clk 00:30:31]} {[%emt 00:04:28]} 28. h3
{[%clk 00:37:45]} {[%emt 00:01:36]} Bf5 {[%clk 00:22:14]} {[%emt 00:08:47]} 29.
Qxd4 {[%clk 00:37:33]} {[%emt 00:00:42]} Nc2 {[%clk 00:11:37]} {[%emt
00:11:06]} 30. Qc4 {[%clk 00:36:59]} {[%emt 00:01:05]} Nxa1 {[%clk 00:11:49]}
{[%emt 00:00:18]} 31. Bxf5 {[%clk 00:37:11]} {[%emt 00:00:17]} Kg7 {[%clk
00:10:06]} {[%emt 00:02:14]} 32. Qc7 {[%clk 00:35:55]} {[%emt 00:01:45]} 1-0

[Event "FIDE Grand Swiss 2023"]
[Site "Villa Marina, Douglas, Isle of Man, Isle Of Man"]
[Date "2023.11.05"]
[Round "11.10"]
[White "Kuzubov, Yuriy"]
[Black "Abdusattorov, Nodirbek"]
[Result "0-1"]
[TimeControl "40/90 + 30 + 30s/move"]
[WhiteFideId "14112906"]
[BlackFideId "14204118"]
[WhiteElo "2625"]
[BlackElo "2716"]

1. d4 {[%clk 01:40:56]} {[%emt 00:00:02]} d5 {[%clk 01:40:45]} {[%emt
00:00:17]} 2. c4 {[%clk 01:41:19]} {[%emt 00:00:06]} dxc4 {[%clk 01:41:11]}
{[%emt 00:00:04]} 3. Nf3 {[%clk 01:41:41]} {[%emt 00:00:06]} Nf6 {[%clk
01:41:33]} {[%emt 00:00:09]} 4. e3 {[%clk 01:41:16]} {[%emt 00:00:55]} e6
{[%clk 01:41:56]} {[%emt 00:00:08]} 5. Bxc4 {[%clk 01:41:41]} {[%emt 00:00:06]}
a6 {[%clk 01:42:23]} {[%emt 00:00:04]} 6. O-O {[%clk 01:42:02]} {[%emt
00:00:08]} c5 {[%clk 01:42:46]} {[%emt 00:00:07]} 7. dxc5 {[%clk 01:42:25]}
{[%emt 00:00:07]} Bxc5 {[%clk 01:42:48]} {[%emt 00:00:28]} 8. Qxd8+ {[%clk
01:42:50]} {[%emt 00:00:05]} Kxd8 {[%clk 01:43:12]} {[%emt 00:00:06]} 9. Bd2
{[%clk 01:43:09]} {[%emt 00:00:10]} Ke7 {[%clk 01:40:19]} {[%emt 00:03:24]} 10.
Rc1 {[%clk 01:43:32]} {[%emt 00:00:07]} Nbd7 {[%clk 01:38:42]} {[%emt
00:02:08]} 11. Be2 {[%clk 01:43:40]} {[%emt 00:00:21]} Bd6 {[%clk 01:23:30]}
{[%emt 00:15:43]} 12. Nd4 {[%clk 01:19:23]} {[%emt 00:24:46]} Ne5 {[%clk
01:22:24]} {[%emt 00:01:36]} 13. Na3 {[%clk 01:05:56]} {[%emt 00:13:56]} Bd7
{[%clk 01:15:25]} {[%emt 00:07:30]} 14. f4 {[%clk 01:03:05]} {[%emt 00:03:20]}
Nc6 {[%clk 01:15:06]} {[%emt 00:00:50]} 15. Nxc6+ {[%clk 01:01:44]} {[%emt
00:01:50]} Bxc6 {[%clk 01:14:57]} {[%emt 00:00:39]} 16. Nc4 {[%clk 01:02:08]}
{[%emt 00:00:05]} Bc5 {[%clk 01:14:42]} {[%emt 00:00:46]} 17. Ne5 {[%clk
00:51:45]} {[%emt 00:10:52]} Rhd8 {[%clk 01:14:50]} {[%emt 00:00:23]} 18. Nxc6+
{[%clk 00:50:53]} {[%emt 00:01:22]} bxc6 {[%clk 01:15:09]} {[%emt 00:00:12]} 19.
Rxc5 {[%clk 00:51:16]} {[%emt 00:00:06]} Rxd2 {[%clk 01:15:36]} {[%emt
00:00:04]} 20. Bf3 {[%clk 00:51:24]} {[%emt 00:00:22]} Rc8 {[%clk 01:13:30]}
{[%emt 00:02:37]} 21. Rb1 {[%clk 00:46:56]} {[%emt 00:04:57]} Nd5 {[%clk
01:06:50]} {[%emt 00:07:11]} 22. Bxd5 {[%clk 00:26:49]} {[%emt 00:20:37]} exd5
{[%clk 01:06:08]} {[%emt 00:01:12]} 23. Ra5 {[%clk 00:27:10]} {[%emt 00:00:09]}
c5 {[%clk 00:59:36]} {[%emt 00:07:02]} 24. Rxa6 {[%clk 00:27:05]} {[%emt
00:00:35]} c4 {[%clk 00:58:47]} {[%emt 00:01:20]} 25. Rb6 {[%clk 00:27:04]}
{[%emt 00:00:31]} Kd7 {[%clk 00:57:18]} {[%emt 00:02:00]} 26. Rc1 {[%clk
00:05:51]} {[%emt 00:21:43]} Re8 {[%clk 00:47:41]} {[%emt 00:10:07]} 27. Rb7+
{[%clk 00:05:39]} {[%emt 00:00:42]} Kd6 {[%clk 00:47:07]} {[%emt 00:01:05]} 28.
Rb6+ {[%clk 00:04:03]} {[%emt 00:02:06]} Kc5 {[%clk 00:45:33]} {[%emt
00:02:03]} 29. Rb3 {[%clk 00:04:20]} {[%emt 00:00:12]} Re6 {[%clk 00:42:51]}
{[%emt 00:03:12]} 30. f5 {[%clk 00:03:05]} {[%emt 00:01:46]} Ra6 {[%clk
00:35:19]} {[%emt 00:08:03]} 31. Rb7 {[%clk 00:02:44]} {[%emt 00:00:51]} Rxa2
{[%clk 00:32:09]} {[%emt 00:03:41]} 32. Rxf7 {[%clk 00:03:07]} {[%emt
00:00:06]} g6 {[%clk 00:32:28]} {[%emt 00:00:11]} 33. fxg6 {[%clk 00:01:34]}
{[%emt 00:02:02]} Raxb2 {[%clk 00:16:38]} {[%emt 00:16:20]} 34. g7 {[%clk
00:01:07]} {[%emt 00:00:56]} Rxg2+ {[%clk 00:16:27]} {[%emt 00:00:41]} 35. Kf1
{[%clk 00:01:29]} {[%emt 00:00:08]} Rg6 {[%clk 00:12:24]} {[%emt 00:04:34]} 36.
Ra1 {[%clk 00:01:38]} {[%emt 00:00:20]} Rxh2 {[%clk 00:09:36]} {[%emt
00:03:19]} 37. Rc7+ {[%clk 00:01:00]} {[%emt 00:01:08]} Kb6 {[%clk 00:08:30]}
{[%emt 00:01:36]} 38. Rc6+ {[%clk 00:00:41]} {[%emt 00:00:48]} Rxc6 {[%clk
00:07:51]} {[%emt 00:01:09]} 39. g8=Q {[%clk 00:00:35]} {[%emt 00:00:36]} Rh1+
{[%clk 00:08:13]} {[%emt 00:00:08]} 40. Ke2 {[%clk 00:00:52]} {[%emt 00:00:13]}
Rxa1 {[%clk 00:07:56]} {[%emt 00:00:47]} 41. Qxd5 {[%clk 00:00:40]} {[%emt
00:00:41]} Ra2+ {[%clk 00:47:40]} {[%emt 00:10:43]} 42. Kf3 {[%clk 00:49:28]}
{[%emt 00:01:44]} Ra6 {[%clk 00:41:25]} {[%emt 00:06:44]} 43. Qd4+ {[%clk
00:43:47]} {[%emt 00:06:12]} Kb7 {[%clk 00:41:46]} {[%emt 00:00:10]} 44. Qc3
{[%clk 00:42:38]} {[%emt 00:01:39]} Rf6+ {[%clk 00:38:26]} {[%emt 00:03:50]} 45.
Ke4 {[%clk 00:41:44]} {[%emt 00:01:22]} Rac6 {[%clk 00:38:31]} {[%emt
00:00:26]} 46. Kd5 {[%clk 00:39:40]} {[%emt 00:02:34]} Rfd6+ {[%clk 00:34:51]}
{[%emt 00:04:11]} 47. Ke5 {[%clk 00:39:59]} {[%emt 00:00:11]} Rd3 {[%clk
00:35:13]} {[%emt 00:00:07]} 48. Qb4+ {[%clk 00:38:39]} {[%emt 00:01:50]} Kc8
{[%clk 00:34:39]} {[%emt 00:01:04]} 49. Qf8+ {[%clk 00:37:13]} {[%emt
00:01:56]} Rd8 {[%clk 00:32:47]} {[%emt 00:02:23]} 50. Qa3 {[%clk 00:36:14]}
{[%emt 00:01:29]} Rdd6 {[%clk 00:32:39]} {[%emt 00:00:37]} 51. Qa8+ {[%clk
00:33:39]} {[%emt 00:03:05]} Kd7 {[%clk 00:33:02]} {[%emt 00:00:07]} 52. Qb7+
{[%clk 00:32:24]} {[%emt 00:01:45]} Rc7 {[%clk 00:33:28]} {[%emt 00:00:04]} 53.
Qb5+ {[%clk 00:26:07]} {[%emt 00:06:47]} Rdc6 {[%clk 00:33:47]} {[%emt
00:00:12]} 54. Kd4 {[%clk 00:18:05]} {[%emt 00:08:32]} c3 {[%clk 00:34:00]}
{[%emt 00:00:18]} 55. Qf5+ {[%clk 00:18:24]} {[%emt 00:00:10]} Ke8 {[%clk
00:34:00]} {[%emt 00:00:30]} 56. Qe5+ {[%clk 00:16:52]} {[%emt 00:02:02]} Kd8
{[%clk 00:32:53]} {[%emt 00:01:34]} 57. Qh8+ {[%clk 00:15:27]} {[%emt
00:01:58]} Kd7 {[%clk 00:32:23]} {[%emt 00:01:01]} 58. Qxh7+ {[%clk 00:15:52]}
{[%emt 00:00:04]} Kc8 {[%clk 00:32:51]} {[%emt 00:00:03]} 59. Qg8+ {[%clk
00:15:19]} {[%emt 00:01:02]} Kb7 {[%clk 00:33:17]} {[%emt 00:00:04]} 60. Qb3+
{[%clk 00:15:04]} {[%emt 00:00:45]} Ka7 {[%clk 00:33:43]} {[%emt 00:00:05]} 61.
Qa2+ {[%clk 00:14:37]} {[%emt 00:00:57]} Ra6 {[%clk 00:33:50]} {[%emt
00:00:23]} 62. Qc2 {[%clk 00:15:02]} {[%emt 00:00:05]} Rd6+ {[%clk 00:30:24]}
{[%emt 00:03:56]} 63. Ke4 {[%clk 00:10:07]} {[%emt 00:05:24]} Rcc6 {[%clk
00:28:02]} {[%emt 00:02:53]} 64. Kf5 {[%clk 00:06:52]} {[%emt 00:03:45]} Rd5+
{[%clk 00:24:00]} {[%emt 00:04:31]} 65. Kf4 {[%clk 00:06:32]} {[%emt 00:00:50]}
Rb5 {[%clk 00:24:03]} {[%emt 00:00:28]} 66. e4 {[%clk 00:03:50]} {[%emt
00:03:12]} Kb6 {[%clk 00:22:11]} {[%emt 00:02:21]} 67. e5 {[%clk 00:02:10]}
{[%emt 00:02:10]} Rb2 {[%clk 00:22:23]} {[%emt 00:00:19]} 68. Qc1 {[%clk
00:01:02]} {[%emt 00:01:38]} Rb4+ {[%clk 00:21:06]} {[%emt 00:01:46]} 69. Kf3
{[%clk 00:00:32]} {[%emt 00:01:00]} c2 {[%clk 00:20:33]} {[%emt 00:01:04]} 70.
e6 {[%clk 00:00:58]} {[%emt 00:00:04]} Rc3+ {[%clk 00:20:32]} {[%emt 00:00:31]}
71. Kf2 {[%clk 00:00:34]} {[%emt 00:00:54]} Rb1 {[%clk 00:20:47]} {[%emt
00:00:15]} 72. e7 {[%clk 00:00:58]} {[%emt 00:00:05]} Rxc1 {[%clk 00:20:51]}
{[%emt 00:00:27]} 73. e8=Q {[%clk 00:01:23]} {[%emt 00:00:05]} Rf1+ {[%clk
00:21:11]} {[%emt 00:00:09]} 74. Kg2 {[%clk 00:01:48]} {[%emt 00:00:05]} Rf2+
{[%clk 00:21:07]} {[%emt 00:00:34]} 75. Kxf2 {[%clk 00:02:10]} {[%emt
00:00:07]} c1=Q {[%clk 00:21:33]} {[%emt 00:00:04]} 76. Qb8+ {[%clk 00:02:16]}
{[%emt 00:00:24]} Ka5 {[%clk 00:21:56]} {[%emt 00:00:07]} 0-1